[Event "Titled Tuesday Blitz October 31 Early 2023"]
[White "Polaczek, Richard"]
[Black "Fecker, Noah"]
[WhiteFideId "200026"]
[BlackFideId "1334263"]
[WhiteElo "2411"]
[BlackElo "2753"]
[Result "0-1"]
[Round "1"]
[TimeControl "180+1"]
[Date "2023.10.31"]
[WhiteClock "0:00:12"]
[BlackClock "0:00:44"]
[Board "76"]

1. d4 {[%clk 0:02:58]}  Nf6 {[%clk 0:02:55]} 2. Bg5 {[%clk 0:02:57]}  e6 {[%clk 0:02:54]} 3. e4 {[%clk 0:02:56]}  h6 {[%clk 0:02:54]} 4. Bxf6 {[%clk 0:02:56]}  Qxf6 {[%clk 0:02:55]} 5. c3 {[%clk 0:02:56]}  d6 {[%clk 0:02:52]} 6. Bd3 {[%clk 0:02:54]}  e5 {[%clk 0:02:52]} 7. Ne2 {[%clk 0:02:54]}  Nc6 {[%clk 0:02:51]} 8. Na3 {[%clk 0:02:49]}  Bd7 {[%clk 0:02:49]} 9. Nc2 {[%clk 0:02:48]}  g6 {[%clk 0:02:47]} 10. O-O {[%clk 0:02:46]}  Bg7 {[%clk 0:02:48]} 11. f4 {[%clk 0:02:45]}  exd4 {[%clk 0:02:43]} 12. cxd4 {[%clk 0:02:44]}  O-O {[%clk 0:02:43]} 13. e5 {[%clk 0:02:27]}  Qe7 {[%clk 0:02:39]} 14. f5 {[%clk 0:02:20]}  dxe5 {[%clk 0:02:29]} 15. fxg6 {[%clk 0:02:17]}  fxg6 {[%clk 0:02:25]} 16. Bxg6 {[%clk 0:01:53]}  exd4 {[%clk 0:02:14]} 17. Qd3 {[%clk 0:01:35]}  Ne5 {[%clk 0:02:01]} 18. Qb3+ {[%clk 0:01:33]}  Be6 {[%clk 0:01:56]} 19. Qg3 {[%clk 0:01:30]}  Nxg6 {[%clk 0:01:46]} 20. Qxg6 {[%clk 0:01:27]}  c5 {[%clk 0:01:27]} 21. Nf4 {[%clk 0:01:17]}  Bc4 {[%clk 0:01:23]} 22. Rf3 {[%clk 0:00:54]}  Rf6 {[%clk 0:01:15]} 23. Qg4 {[%clk 0:00:49]}  Bf7 {[%clk 0:00:59]} 24. Re1 {[%clk 0:00:47]}  Qd6 {[%clk 0:00:58]} 25. Nh5 {[%clk 0:00:34]}  Bxh5 {[%clk 0:00:54]} 26. Qxh5 {[%clk 0:00:34]}  Raf8 {[%clk 0:00:52]} 27. Rxf6 {[%clk 0:00:30]}  Qxf6 {[%clk 0:00:52]} 28. h3 {[%clk 0:00:12]}  Qf2+ {[%clk 0:00:44]} 0-1


[Site "https://www.chess.com"]

[Event "Titled Tuesday Blitz October 31 Early 2023"]
[White "Schmakel, Sam"]
[Black "McBryde, Lamel"]
[WhiteFideId "2039311"]
[BlackFideId "2058596"]
[WhiteElo "2745"]
[BlackElo "2409"]
[Result "0-1"]
[Round "1"]
[TimeControl "180+1"]
[Date "2023.10.31"]
[WhiteClock "0:00:05"]
[BlackClock "0:00:04"]
[Board "77"]

1. Nf3 {[%clk 0:02:59]}  Nf6 {[%clk 0:03:00]} 2. b3 {[%clk 0:02:58]}  e6 {[%clk 0:03:00]} 3. Bb2 {[%clk 0:02:58]}  b6 {[%clk 0:03:00]} 4. g3 {[%clk 0:02:56]}  Bb7 {[%clk 0:03:00]} 5. Bg2 {[%clk 0:02:57]}  c5 {[%clk 0:03:01]} 6. O-O {[%clk 0:02:57]}  d6 {[%clk 0:03:01]} 7. c4 {[%clk 0:02:56]}  Nbd7 {[%clk 0:03:01]} 8. d4 {[%clk 0:02:56]}  cxd4 {[%clk 0:03:00]} 9. Qxd4 {[%clk 0:02:56]}  Qc7 {[%clk 0:02:59]} 10. Nc3 {[%clk 0:02:55]}  a6 {[%clk 0:02:59]} 11. Rfd1 {[%clk 0:02:53]}  Be7 {[%clk 0:02:58]} 12. Rac1 {[%clk 0:02:50]}  O-O {[%clk 0:02:57]} 13. e4 {[%clk 0:02:45]}  Rac8 {[%clk 0:02:54]} 14. Qe3 {[%clk 0:02:00]}  Qb8 {[%clk 0:02:45]} 15. Nd4 {[%clk 0:01:59]}  Bd8 {[%clk 0:02:36]} 16. f3 {[%clk 0:01:47]}  Bc7 {[%clk 0:02:36]} 17. Kh1 {[%clk 0:01:45]}  Rfe8 {[%clk 0:02:30]} 18. Qd2 {[%clk 0:01:18]}  Rcd8 {[%clk 0:02:20]} 19. Nde2 {[%clk 0:01:04]}  Ne5 {[%clk 0:02:05]} 20. Nf4 {[%clk 0:01:03]}  Ng6 {[%clk 0:01:50]} 21. Nce2 {[%clk 0:00:50]}  Ne5 {[%clk 0:01:39]} 22. Nd4 {[%clk 0:00:45]}  d5 {[%clk 0:01:31]} 23. exd5 {[%clk 0:00:45]}  exd5 {[%clk 0:01:32]} 24. c5 {[%clk 0:00:45]}  bxc5 {[%clk 0:01:29]} 25. Rxc5 {[%clk 0:00:46]}  Ned7 {[%clk 0:01:16]} 26. Nc6 {[%clk 0:00:39]}  Bxf4 {[%clk 0:01:05]} 27. gxf4 {[%clk 0:00:39]}  Bxc6 {[%clk 0:00:50]} 28. Rxc6 {[%clk 0:00:40]}  Nh5 {[%clk 0:00:43]} 29. f5 {[%clk 0:00:40]}  Nf4 {[%clk 0:00:36]} 30. Bf1 {[%clk 0:00:37]}  Ne5 {[%clk 0:00:31]} 31. Rxa6 {[%clk 0:00:33]}  Nxf3 {[%clk 0:00:30]} 32. Qf2 {[%clk 0:00:34]}  Ng5 {[%clk 0:00:23]} 33. Qg3 {[%clk 0:00:33]}  f6 {[%clk 0:00:21]} 34. Bxf6 {[%clk 0:00:31]}  gxf6 {[%clk 0:00:19]} 35. Rxf6 {[%clk 0:00:32]}  Kh8 {[%clk 0:00:10]} 36. Qxg5 {[%clk 0:00:32]}  Rg8 {[%clk 0:00:11]} 37. Qh4 {[%clk 0:00:32]}  d4 {[%clk 0:00:10]} 38. Rc6 {[%clk 0:00:23]}  Rg7 {[%clk 0:00:05]} 39. f6 {[%clk 0:00:19]}  Rg6 {[%clk 0:00:05]} 40. f7 {[%clk 0:00:15]}  Rxc6 {[%clk 0:00:06]} 41. Bd3 {[%clk 0:00:09]}  Rg6 {[%clk 0:00:04]} 42. Bxg6 {[%clk 0:00:05]}  Qb7+ {[%clk 0:00:04]} 0-1


[Site "https://www.chess.com"]

[Event "Titled Tuesday Blitz October 31 Early 2023"]
[White "Kukreja Sankalp"]
[Black "Srihari L R"]
[WhiteFideId "45027676"]
[BlackFideId "46617116"]
[WhiteElo "2408"]
[BlackElo "2740"]
[Result "0-1"]
[Round "1"]
[TimeControl "180+1"]
[Date "2023.10.31"]
[WhiteClock "0:00:05"]
[BlackClock "0:00:20"]
[Board "78"]

1. e4 {[%clk 0:01:19]}  d6 {[%clk 0:02:58]} 2. d4 {[%clk 0:01:10]}  Nf6 {[%clk 0:02:58]} 3. Bd3 {[%clk 0:01:03]}  e5 {[%clk 0:02:58]} 4. Nf3 {[%clk 0:01:00]}  Nc6 {[%clk 0:02:54]} 5. Be3 {[%clk 0:00:57]}  exd4 {[%clk 0:02:45]} 6. Nxd4 {[%clk 0:00:54]}  Ne5 {[%clk 0:02:44]} 7. O-O {[%clk 0:00:50]}  Be7 {[%clk 0:02:44]} 8. h3 {[%clk 0:00:45]}  O-O {[%clk 0:02:44]} 9. f4 {[%clk 0:00:43]}  Nxd3 {[%clk 0:02:42]} 10. cxd3 {[%clk 0:00:44]}  c5 {[%clk 0:02:26]} 11. Nf3 {[%clk 0:00:43]}  d5 {[%clk 0:02:26]} 12. e5 {[%clk 0:00:39]}  Nd7 {[%clk 0:02:25]} 13. d4 {[%clk 0:00:39]}  f5 {[%clk 0:02:12]} 14. Nc3 {[%clk 0:00:35]}  cxd4 {[%clk 0:02:08]} 15. Nxd4 {[%clk 0:00:34]}  Nb6 {[%clk 0:02:08]} 16. Rc1 {[%clk 0:00:33]}  Kh8 {[%clk 0:02:06]} 17. Qd3 {[%clk 0:00:32]}  Bd7 {[%clk 0:02:00]} 18. b3 {[%clk 0:00:32]}  Rc8 {[%clk 0:01:37]} 19. Rfd1 {[%clk 0:00:17]}  a6 {[%clk 0:01:36]} 20. Nce2 {[%clk 0:00:17]}  Ba3 {[%clk 0:01:30]} 21. Rxc8 {[%clk 0:00:16]}  Nxc8 {[%clk 0:01:31]} 22. e6 {[%clk 0:00:16]}  Be8 {[%clk 0:01:29]} 23. Nxf5 {[%clk 0:00:17]}  Bg6 {[%clk 0:01:28]} 24. Neg3 {[%clk 0:00:15]}  Ne7 {[%clk 0:01:27]} 25. b4 {[%clk 0:00:08]}  Bxb4 {[%clk 0:00:43]} 26. Qd4 {[%clk 0:00:08]}  Bxf5 {[%clk 0:00:35]} 27. Qxb4 {[%clk 0:00:07]}  Bxe6 {[%clk 0:00:34]} 28. Bc5 {[%clk 0:00:08]}  Rf7 {[%clk 0:00:33]} 29. Re1 {[%clk 0:00:08]}  Nc6 {[%clk 0:00:32]} 30. Rxe6 {[%clk 0:00:08]}  Nxb4 {[%clk 0:00:31]} 31. Bxb4 {[%clk 0:00:09]}  h6 {[%clk 0:00:30]} 32. Nh5 {[%clk 0:00:08]}  Kh7 {[%clk 0:00:28]} 33. Bc3 {[%clk 0:00:08]}  Qc8 {[%clk 0:00:25]} 34. Re3 {[%clk 0:00:08]}  Qc4 {[%clk 0:00:21]} 35. Ng3 {[%clk 0:00:08]}  d4 {[%clk 0:00:20]} 36. Re4 {[%clk 0:00:05]}  Qxc3 {[%clk 0:00:20]} 0-1


[Site "https://www.chess.com"]

[Event "Titled Tuesday Blitz October 31 Early 2023"]
[White "Xie, Bryan"]
[Black "Zhao, Erick"]
[WhiteFideId "30941296"]
[BlackFideId "30946930"]
[WhiteElo "2405"]
[BlackElo "2738"]
[Result "0-1"]
[Round "1"]
[TimeControl "180+1"]
[Date "2023.10.31"]
[WhiteClock "0:00:28"]
[BlackClock "0:01:51"]
[Board "80"]

1. e4 {[%clk 0:02:16]}  c5 {[%clk 0:02:59]} 2. Nf3 {[%clk 0:02:15]}  e6 {[%clk 0:02:59]} 3. d4 {[%clk 0:02:15]}  cxd4 {[%clk 0:03:00]} 4. Nxd4 {[%clk 0:02:16]}  a6 {[%clk 0:03:00]} 5. c4 {[%clk 0:02:16]}  Qc7 {[%clk 0:03:01]} 6. Nc3 {[%clk 0:02:17]}  Nf6 {[%clk 0:03:01]} 7. a3 {[%clk 0:02:17]}  Nc6 {[%clk 0:03:01]} 8. Be3 {[%clk 0:02:16]}  Ne5 {[%clk 0:03:01]} 9. Rc1 {[%clk 0:02:07]}  b6 {[%clk 0:03:00]} 10. Be2 {[%clk 0:02:04]}  Bb7 {[%clk 0:03:00]} 11. f3 {[%clk 0:02:03]}  Be7 {[%clk 0:02:53]} 12. O-O {[%clk 0:02:04]}  O-O {[%clk 0:02:54]} 13. b4 {[%clk 0:01:51]}  Rac8 {[%clk 0:02:50]} 14. Na4 {[%clk 0:01:46]}  d6 {[%clk 0:02:45]} 15. Qd2 {[%clk 0:01:38]}  Nfd7 {[%clk 0:02:29]} 16. f4 {[%clk 0:01:30]}  Nc6 {[%clk 0:02:28]} 17. Bf3 {[%clk 0:01:25]}  Qb8 {[%clk 0:02:15]} 18. Rfd1 {[%clk 0:01:22]}  Bd8 {[%clk 0:02:09]} 19. Nc3 {[%clk 0:01:06]}  Nxd4 {[%clk 0:02:03]} 20. Bxd4 {[%clk 0:01:05]}  Rxc4 {[%clk 0:01:58]} 21. Qe3 {[%clk 0:00:56]}  e5 {[%clk 0:01:54]} 22. fxe5 {[%clk 0:00:52]}  dxe5 {[%clk 0:01:54]} 23. Bc5 {[%clk 0:00:44]}  bxc5 {[%clk 0:01:54]} 24. Rxd7 {[%clk 0:00:40]}  cxb4 {[%clk 0:01:54]} 25. axb4 {[%clk 0:00:35]}  Bc6 {[%clk 0:01:52]} 26. Rdd1 {[%clk 0:00:28]}  Bb6 {[%clk 0:01:51]} 0-1


[Site "https://www.chess.com"]

[Event "Titled Tuesday Blitz October 31 Early 2023"]
[White "Gubajdullin, Alexei"]
[Black "Ziatdinov, Raset"]
[WhiteFideId "4141202"]
[BlackFideId "2015323"]
[WhiteElo "2734"]
[BlackElo "2405"]
[Result "1-0"]
[Round "1"]
[TimeControl "180+1"]
[Date "2023.10.31"]
[WhiteClock "0:00:10"]
[BlackClock "0:00:15"]
[Board "81"]

1. d4 {[%clk 0:02:59]}  Nf6 {[%clk 0:02:58]} 2. Nf3 {[%clk 0:02:58]}  g6 {[%clk 0:02:57]} 3. Bf4 {[%clk 0:02:58]}  Bg7 {[%clk 0:02:57]} 4. e3 {[%clk 0:02:58]}  O-O {[%clk 0:02:56]} 5. Be2 {[%clk 0:02:58]}  d5 {[%clk 0:02:56]} 6. O-O {[%clk 0:02:58]}  b6 {[%clk 0:02:49]} 7. c3 {[%clk 0:02:57]}  Bb7 {[%clk 0:02:49]} 8. Ne5 {[%clk 0:02:56]}  c5 {[%clk 0:02:49]} 9. Nd2 {[%clk 0:02:56]}  Nc6 {[%clk 0:02:49]} 10. a4 {[%clk 0:02:55]}  Nd7 {[%clk 0:02:44]} 11. Nxc6 {[%clk 0:02:53]}  Bxc6 {[%clk 0:02:44]} 12. a5 {[%clk 0:02:53]}  e5 {[%clk 0:02:42]} 13. dxe5 {[%clk 0:02:53]}  Nxe5 {[%clk 0:02:42]} 14. Bxe5 {[%clk 0:02:43]}  Bxe5 {[%clk 0:02:41]} 15. Bf3 {[%clk 0:02:43]}  Qd7 {[%clk 0:02:38]} 16. axb6 {[%clk 0:02:39]}  axb6 {[%clk 0:02:38]} 17. Qb3 {[%clk 0:02:39]}  Qb7 {[%clk 0:02:35]} 18. c4 {[%clk 0:02:22]}  d4 {[%clk 0:02:24]} 19. Bxc6 {[%clk 0:02:20]}  Qxc6 {[%clk 0:02:24]} 20. Nf3 {[%clk 0:02:20]}  Bf6 {[%clk 0:02:21]} 21. exd4 {[%clk 0:02:17]}  cxd4 {[%clk 0:02:20]} 22. Qd3 {[%clk 0:02:09]}  Qc5 {[%clk 0:02:18]} 23. g3 {[%clk 0:02:03]}  Rfd8 {[%clk 0:02:16]} 24. h4 {[%clk 0:01:54]}  h5 {[%clk 0:02:14]} 25. Nd2 {[%clk 0:01:41]}  Qb4 {[%clk 0:02:06]} 26. Ne4 {[%clk 0:01:40]}  Bg7 {[%clk 0:01:51]} 27. b3 {[%clk 0:01:40]}  Re8 {[%clk 0:01:32]} 28. Qf3 {[%clk 0:01:33]}  Ra3 {[%clk 0:00:58]} 29. Rxa3 {[%clk 0:01:22]}  Qxa3 {[%clk 0:00:57]} 30. Ng5 {[%clk 0:01:21]}  Rf8 {[%clk 0:00:56]} 31. Re1 {[%clk 0:01:16]}  Qb4 {[%clk 0:00:49]} 32. Rd1 {[%clk 0:01:11]}  b5 {[%clk 0:00:44]} 33. cxb5 {[%clk 0:01:05]}  Qxb5 {[%clk 0:00:45]} 34. Rd3 {[%clk 0:01:04]}  Qc5 {[%clk 0:00:41]} 35. Kg2 {[%clk 0:01:04]}  Qb4 {[%clk 0:00:39]} 36. Qd5 {[%clk 0:01:00]}  Qe7 {[%clk 0:00:38]} 37. Rf3 {[%clk 0:00:59]}  Bf6 {[%clk 0:00:35]} 38. Ne4 {[%clk 0:00:56]}  Bg7 {[%clk 0:00:34]} 39. Ng5 {[%clk 0:00:34]}  Qe5 {[%clk 0:00:23]} 40. Qc4 {[%clk 0:00:32]}  Qe7 {[%clk 0:00:22]} 41. b4 {[%clk 0:00:31]}  Bf6 {[%clk 0:00:20]} 42. Nh3 {[%clk 0:00:30]}  Be5 {[%clk 0:00:20]} 43. b5 {[%clk 0:00:29]}  Qd6 {[%clk 0:00:20]} 44. Ng5 {[%clk 0:00:29]}  Qc7 {[%clk 0:00:20]} 45. Qd5 {[%clk 0:00:28]}  Qd6 {[%clk 0:00:20]} 46. Qb3 {[%clk 0:00:27]}  Qc7 {[%clk 0:00:19]} 47. b6 {[%clk 0:00:27]}  Qb7 {[%clk 0:00:19]} 48. Kh2 {[%clk 0:00:22]}  Bg7 {[%clk 0:00:18]} 49. Rf4 {[%clk 0:00:19]}  Be5 {[%clk 0:00:17]} 50. Re4 {[%clk 0:00:18]}  Bf6 {[%clk 0:00:17]} 51. Re1 {[%clk 0:00:14]}  Bxg5 {[%clk 0:00:17]} 52. hxg5 {[%clk 0:00:15]}  Rb8 {[%clk 0:00:17]} 53. Rb1 {[%clk 0:00:15]}  Qc6 {[%clk 0:00:16]} 54. b7 {[%clk 0:00:14]}  d3 {[%clk 0:00:16]} 55. Qb4 {[%clk 0:00:11]}  d2 {[%clk 0:00:16]} 56. Qxd2 {[%clk 0:00:10]}  Rxb7 {[%clk 0:00:16]} 57. Qd8+ {[%clk 0:00:10]}  Kh7 {[%clk 0:00:16]} 58. Re1 {[%clk 0:00:08]}  Qb6 {[%clk 0:00:16]} 59. Qxb6 {[%clk 0:00:07]}  Rxb6 {[%clk 0:00:16]} 60. Re7 {[%clk 0:00:08]}  Kg7 {[%clk 0:00:16]} 61. Kg2 {[%clk 0:00:08]}  Re6 {[%clk 0:00:16]} 62. Rxe6 {[%clk 0:00:08]}  fxe6 {[%clk 0:00:17]} 63. Kf3 {[%clk 0:00:09]}  Kf7 {[%clk 0:00:18]} 64. Ke4 {[%clk 0:00:09]}  Kf8 {[%clk 0:00:18]} 65. Ke5 {[%clk 0:00:09]}  Ke7 {[%clk 0:00:18]} 66. f3 {[%clk 0:00:09]}  Kf7 {[%clk 0:00:18]} 67. Kd6 {[%clk 0:00:10]}  e5 {[%clk 0:00:18]} 68. Kxe5 {[%clk 0:00:10]}  Ke7 {[%clk 0:00:18]} 69. f4 {[%clk 0:00:10]}  Kf7 {[%clk 0:00:18]} 70. Kd6 {[%clk 0:00:10]}  Kg7 {[%clk 0:00:15]} 71. Ke6 {[%clk 0:00:10]} 1-0


[Site "https://www.chess.com"]

[Event "Titled Tuesday Blitz October 31 Early 2023"]
[White "Luong Phuong Hanh"]
[Black "Krzyzanowski, Marcin"]
[WhiteFideId "12401013"]
[BlackFideId "1132199"]
[WhiteElo "2404"]
[BlackElo "2733"]
[Result "0-1"]
[Round "1"]
[TimeControl "180+1"]
[Date "2023.10.31"]
[WhiteClock "0:00:12"]
[BlackClock "0:00:16"]
[Board "82"]

1. d4 {[%clk 0:02:59]}  Nf6 {[%clk 0:02:59]} 2. Nf3 {[%clk 0:02:58]}  g6 {[%clk 0:02:58]} 3. g3 {[%clk 0:02:57]}  Bg7 {[%clk 0:02:58]} 4. Bg2 {[%clk 0:02:57]}  b5 {[%clk 0:02:57]} 5. O-O {[%clk 0:02:56]}  Bb7 {[%clk 0:02:57]} 6. c3 {[%clk 0:02:56]}  O-O {[%clk 0:02:56]} 7. Nbd2 {[%clk 0:02:57]}  a5 {[%clk 0:02:51]} 8. Re1 {[%clk 0:02:57]}  d5 {[%clk 0:02:50]} 9. Ne5 {[%clk 0:02:57]}  e6 {[%clk 0:02:50]} 10. a3 {[%clk 0:02:56]}  Nbd7 {[%clk 0:02:50]} 11. a4 {[%clk 0:02:55]}  b4 {[%clk 0:02:48]} 12. Nxd7 {[%clk 0:02:54]}  Qxd7 {[%clk 0:02:45]} 13. Nb3 {[%clk 0:02:53]}  Ne4 {[%clk 0:02:30]} 14. cxb4 {[%clk 0:02:38]}  axb4 {[%clk 0:02:29]} 15. f3 {[%clk 0:02:31]}  Nd6 {[%clk 0:02:28]} 16. Nc5 {[%clk 0:02:29]}  Qc8 {[%clk 0:02:25]} 17. e3 {[%clk 0:02:24]}  Bc6 {[%clk 0:02:18]} 18. Kh1 {[%clk 0:02:15]}  h5 {[%clk 0:02:15]} 19. Bd2 {[%clk 0:02:13]}  Rb8 {[%clk 0:02:11]} 20. Qe2 {[%clk 0:01:54]}  e5 {[%clk 0:02:04]} 21. Na6 {[%clk 0:01:52]}  Rb6 {[%clk 0:01:48]} 22. Nxb4 {[%clk 0:01:48]}  exd4 {[%clk 0:01:47]} 23. a5 {[%clk 0:01:48]}  Bb5 {[%clk 0:01:47]} 24. Qf2 {[%clk 0:01:47]}  dxe3 {[%clk 0:01:38]} 25. Bxe3 {[%clk 0:01:46]}  Rb8 {[%clk 0:01:38]} 26. Nxd5 {[%clk 0:01:46]}  Kh7 {[%clk 0:01:28]} 27. Rac1 {[%clk 0:01:38]}  c6 {[%clk 0:01:23]} 28. Nb6 {[%clk 0:01:38]}  Qf5 {[%clk 0:01:02]} 29. Bf4 {[%clk 0:01:29]}  Rbd8 {[%clk 0:01:00]} 30. Rcd1 {[%clk 0:01:10]}  Nb7 {[%clk 0:01:00]} 31. b4 {[%clk 0:00:56]}  Bc3 {[%clk 0:00:59]} 32. Bd2 {[%clk 0:00:48]}  Rxd2 {[%clk 0:00:53]} 33. Rxd2 {[%clk 0:00:48]}  Bxb4 {[%clk 0:00:54]} 34. Nd7 {[%clk 0:00:36]}  Rd8 {[%clk 0:00:45]} 35. Red1 {[%clk 0:00:36]}  Bxd2 {[%clk 0:00:44]} 36. Qxd2 {[%clk 0:00:36]}  c5 {[%clk 0:00:42]} 37. a6 {[%clk 0:00:21]}  Rxd7 {[%clk 0:00:27]} 38. Qxd7 {[%clk 0:00:20]}  Bxd7 {[%clk 0:00:28]} 39. axb7 {[%clk 0:00:21]}  Qc2 {[%clk 0:00:24]} 40. Re1 {[%clk 0:00:20]}  Qb2 {[%clk 0:00:21]} 41. h4 {[%clk 0:00:20]}  Qxb7 {[%clk 0:00:21]} 42. Re7 {[%clk 0:00:20]}  Kg7 {[%clk 0:00:17]} 43. Kh2 {[%clk 0:00:20]}  Qc8 {[%clk 0:00:15]} 44. f4 {[%clk 0:00:20]}  Be6 {[%clk 0:00:15]} 45. Ra7 {[%clk 0:00:16]}  c4 {[%clk 0:00:15]} 46. Ra1 {[%clk 0:00:13]}  c3 {[%clk 0:00:16]} 47. Rc1 {[%clk 0:00:14]}  c2 {[%clk 0:00:16]} 48. Be4 {[%clk 0:00:14]}  Bf5 {[%clk 0:00:17]} 49. Rxc2 {[%clk 0:00:13]}  Qxc2+ {[%clk 0:00:15]} 50. Bxc2 {[%clk 0:00:12]}  Bxc2 {[%clk 0:00:16]} 0-1


[Site "https://www.chess.com"]

[Event "Titled Tuesday Blitz October 31 Early 2023"]
[White "UK_23"]
[Black "Kislinsky, Alexey"]
[BlackFideId "14108801"]
[WhiteElo "2400"]
[BlackElo "2729"]
[Result "0-1"]
[Round "1"]
[TimeControl "180+1"]
[Date "2023.10.31"]
[WhiteClock "0:00:13"]
[BlackClock "0:00:27"]
[Board "84"]

1. e4 {[%clk 0:03:00]}  c5 {[%clk 0:02:58]} 2. Nf3 {[%clk 0:02:58]}  Nc6 {[%clk 0:02:58]} 3. Bb5 {[%clk 0:02:58]}  Nf6 {[%clk 0:02:56]} 4. e5 {[%clk 0:02:49]}  Nd5 {[%clk 0:02:55]} 5. Nc3 {[%clk 0:02:47]}  Nc7 {[%clk 0:02:49]} 6. Bxc6 {[%clk 0:02:47]}  dxc6 {[%clk 0:02:48]} 7. O-O {[%clk 0:02:46]}  h6 {[%clk 0:02:30]} 8. Ne4 {[%clk 0:02:38]}  b6 {[%clk 0:02:28]} 9. d3 {[%clk 0:02:34]}  g5 {[%clk 0:02:26]} 10. a4 {[%clk 0:02:33]}  Bf5 {[%clk 0:02:20]} 11. Ng3 {[%clk 0:02:30]}  Bg6 {[%clk 0:02:20]} 12. h3 {[%clk 0:02:24]}  Ne6 {[%clk 0:02:20]} 13. a5 {[%clk 0:02:23]}  Bg7 {[%clk 0:02:14]} 14. Qe2 {[%clk 0:02:20]}  b5 {[%clk 0:02:09]} 15. Re1 {[%clk 0:02:12]}  Qd7 {[%clk 0:01:59]} 16. a6 {[%clk 0:02:11]}  Rd8 {[%clk 0:01:52]} 17. Be3 {[%clk 0:02:10]}  Qd5 {[%clk 0:01:49]} 18. Bd2 {[%clk 0:01:50]}  O-O {[%clk 0:01:44]} 19. b3 {[%clk 0:01:46]}  Rd7 {[%clk 0:01:11]} 20. Rad1 {[%clk 0:01:46]}  Rfd8 {[%clk 0:01:09]} 21. Ba5 {[%clk 0:01:45]}  Nf4 {[%clk 0:01:06]} 22. Qf1 {[%clk 0:01:45]}  Rc8 {[%clk 0:01:01]} 23. c4 {[%clk 0:01:33]}  Qe6 {[%clk 0:01:01]} 24. Bc3 {[%clk 0:01:26]}  Rxd3 {[%clk 0:00:55]} 25. Re3 {[%clk 0:01:09]}  bxc4 {[%clk 0:00:51]} 26. bxc4 {[%clk 0:01:01]}  Rcd8 {[%clk 0:00:51]} 27. Rexd3 {[%clk 0:01:00]}  Bxd3 {[%clk 0:00:52]} 28. Qe1 {[%clk 0:01:00]}  Qxc4 {[%clk 0:00:48]} 29. Bb2 {[%clk 0:00:49]}  Rd5 {[%clk 0:00:47]} 30. Qa5 {[%clk 0:00:44]}  Qb5 {[%clk 0:00:44]} 31. Qa1 {[%clk 0:00:43]}  Bg6 {[%clk 0:00:35]} 32. Kh2 {[%clk 0:00:38]}  Nd3 {[%clk 0:00:34]} 33. Bc3 {[%clk 0:00:34]}  Nb4 {[%clk 0:00:31]} 34. Rxd5 {[%clk 0:00:29]}  cxd5 {[%clk 0:00:31]} 35. e6 {[%clk 0:00:30]}  f6 {[%clk 0:00:29]} 36. h4 {[%clk 0:00:17]}  d4 {[%clk 0:00:30]} 37. Bxb4 {[%clk 0:00:15]}  Qxb4 {[%clk 0:00:29]} 38. h5 {[%clk 0:00:16]}  Be8 {[%clk 0:00:29]} 39. Qe1 {[%clk 0:00:16]}  Qxe1 {[%clk 0:00:29]} 40. Nxe1 {[%clk 0:00:16]}  f5 {[%clk 0:00:25]} 41. Nxf5 {[%clk 0:00:16]}  Bf6 {[%clk 0:00:25]} 42. g4 {[%clk 0:00:16]}  Kh7 {[%clk 0:00:25]} 43. f4 {[%clk 0:00:15]}  gxf4 {[%clk 0:00:25]} 44. Nf3 {[%clk 0:00:15]}  c4 {[%clk 0:00:25]} 45. N3xd4 {[%clk 0:00:14]}  c3 {[%clk 0:00:25]} 46. Kg2 {[%clk 0:00:12]}  Ba4 {[%clk 0:00:25]} 47. Kf2 {[%clk 0:00:12]}  c2 {[%clk 0:00:25]} 48. Nxc2 {[%clk 0:00:13]}  Bxc2 {[%clk 0:00:25]} 49. Kf3 {[%clk 0:00:14]}  Bxf5 {[%clk 0:00:26]} 50. gxf5 {[%clk 0:00:15]}  Be5 {[%clk 0:00:26]} 51. Ke4 {[%clk 0:00:15]}  Bd6 {[%clk 0:00:26]} 52. Kf3 {[%clk 0:00:15]}  Kg7 {[%clk 0:00:26]} 53. Ke4 {[%clk 0:00:13]}  Kf6 {[%clk 0:00:27]} 0-1


[Site "https://www.chess.com"]

[Event "Titled Tuesday Blitz October 31 Early 2023"]
[White "NovozhilovSemen"]
[Black "Jackalhead_Anubis"]
[WhiteElo "2727"]
[BlackElo "2396"]
[Result "1-0"]
[Round "1"]
[TimeControl "180+1"]
[Date "2023.10.31"]
[WhiteClock "0:01:04"]
[BlackClock "0:01:24"]
[Board "87"]

1. d4 {[%clk 0:03:00]}  d5 {[%clk 0:02:56]} 2. c4 {[%clk 0:03:00]}  dxc4 {[%clk 0:02:55]} 3. e3 {[%clk 0:02:59]}  Nf6 {[%clk 0:02:54]} 4. Bxc4 {[%clk 0:02:59]}  e6 {[%clk 0:02:54]} 5. Nf3 {[%clk 0:02:58]}  c5 {[%clk 0:02:54]} 6. O-O {[%clk 0:02:58]}  a6 {[%clk 0:02:54]} 7. a4 {[%clk 0:02:58]}  Nc6 {[%clk 0:02:53]} 8. Qe2 {[%clk 0:02:58]}  cxd4 {[%clk 0:02:48]} 9. Rd1 {[%clk 0:02:57]}  Be7 {[%clk 0:02:45]} 10. exd4 {[%clk 0:02:56]}  O-O {[%clk 0:02:45]} 11. Nc3 {[%clk 0:02:56]}  Nb4 {[%clk 0:02:44]} 12. Ne5 {[%clk 0:02:54]}  b6 {[%clk 0:02:39]} 13. Bg5 {[%clk 0:02:47]}  Bb7 {[%clk 0:02:38]} 14. Rac1 {[%clk 0:02:47]}  Nfd5 {[%clk 0:02:34]} 15. Bd2 {[%clk 0:02:38]}  Rc8 {[%clk 0:02:32]} 16. Nxd5 {[%clk 0:02:33]}  exd5 {[%clk 0:02:20]} 17. Bxb4 {[%clk 0:02:21]}  dxc4 {[%clk 0:02:19]} 18. Nc6 {[%clk 0:01:21]}  Bxc6 {[%clk 0:01:55]} 19. Bxe7 {[%clk 0:01:18]}  Qd5 {[%clk 0:01:55]} 20. Qg4 {[%clk 0:01:13]}  f5 {[%clk 0:01:46]} 21. Qg3 {[%clk 0:01:06]}  f4 {[%clk 0:01:42]} 22. Qg4 {[%clk 0:01:06]}  Rf7 {[%clk 0:01:24]} 23. Qxc8+ {[%clk 0:01:04]} 1-0


[Site "https://www.chess.com"]

[Event "Titled Tuesday Blitz October 31 Early 2023"]
[White "BardArtem"]
[Black "Lebedev, Artem S."]
[BlackFideId "34272747"]
[WhiteElo "2724"]
[BlackElo "2389"]
[Result "1-0"]
[Round "1"]
[TimeControl "180+1"]
[Date "2023.10.31"]
[WhiteClock "0:00:58"]
[BlackClock "0:00:00"]
[Board "89"]

1. e4 {[%clk 0:03:00]}  e5 {[%clk 0:02:59]} 2. d4 {[%clk 0:02:57]}  exd4 {[%clk 0:03:00]} 3. Qxd4 {[%clk 0:02:57]}  Nc6 {[%clk 0:03:00]} 4. Qd3 {[%clk 0:02:57]}  Nf6 {[%clk 0:02:54]} 5. Nc3 {[%clk 0:02:56]}  Bb4 {[%clk 0:02:50]} 6. Ne2 {[%clk 0:02:53]}  O-O {[%clk 0:02:47]} 7. Bd2 {[%clk 0:02:53]}  Ne5 {[%clk 0:02:22]} 8. Qg3 {[%clk 0:02:51]}  Nc4 {[%clk 0:01:56]} 9. Bg5 {[%clk 0:02:45]}  Nxe4 {[%clk 0:01:21]} 10. Bxd8 {[%clk 0:02:44]}  Nxg3 {[%clk 0:01:21]} 11. Nxg3 {[%clk 0:02:45]}  Nxb2 {[%clk 0:01:20]} 12. Ne2 {[%clk 0:02:19]}  Na4 {[%clk 0:01:20]} 13. Be7 {[%clk 0:02:14]}  Bxe7 {[%clk 0:00:37]} 14. Nxa4 {[%clk 0:02:14]}  b5 {[%clk 0:00:38]} 15. Nac3 {[%clk 0:02:12]}  b4 {[%clk 0:00:30]} 16. Nd5 {[%clk 0:02:10]}  Bd6 {[%clk 0:00:30]} 17. Rd1 {[%clk 0:02:07]}  Re8 {[%clk 0:00:27]} 18. Ne3 {[%clk 0:01:53]}  Bb7 {[%clk 0:00:21]} 19. Nd4 {[%clk 0:01:50]}  Bf8 {[%clk 0:00:18]} 20. Nb5 {[%clk 0:01:47]}  Rec8 {[%clk 0:00:11]} 21. Rxd7 {[%clk 0:01:46]}  Rd8 {[%clk 0:00:08]} 22. Rxc7 {[%clk 0:01:40]}  Ba6 {[%clk 0:00:06]} 23. Rxa7 {[%clk 0:01:28]}  b3 {[%clk 0:00:04]} 24. Rxa8 {[%clk 0:01:10]}  b2 {[%clk 0:00:03]} 25. Nc3 {[%clk 0:00:59]}  Bb4 {[%clk 0:00:00]} 26. Rxd8+ {[%clk 0:00:58]} 1-0


[Site "https://www.chess.com"]